[Event "Titled Tuesday Blitz August 1 Early 2023"]
[White "Wagh Suyog"]
[Black "NovozhilovSemen"]
[WhiteFideId "25071688"]
[WhiteElo "2773"]
[BlackElo "2558"]
[Result "1-0"]
[Round "4"]
[TimeControl "180+1"]
[Date "2023.08.01"]
[WhiteClock "0:00:04"]
[BlackClock "0:00:07"]
[Board "58"]

1. d4 {[%clk 0:03:00]}  Nf6 {[%clk 0:02:59]} 2. c4 {[%clk 0:03:00]}  e6 {[%clk 0:02:59]} 3. Nf3 {[%clk 0:03:00]}  d5 {[%clk 0:02:56]} 4. g3 {[%clk 0:02:59]}  dxc4 {[%clk 0:02:57]} 5. Bg2 {[%clk 0:02:59]}  Nc6 {[%clk 0:02:57]} 6. O-O {[%clk 0:02:59]}  Rb8 {[%clk 0:02:57]} 7. Qc2 {[%clk 0:02:52]}  Nxd4 {[%clk 0:02:39]} 8. Nxd4 {[%clk 0:02:40]}  Qxd4 {[%clk 0:02:40]} 9. Rd1 {[%clk 0:02:40]}  Qb6 {[%clk 0:02:38]} 10. Nd2 {[%clk 0:02:39]}  Bc5 {[%clk 0:02:11]} 11. Nxc4 {[%clk 0:02:30]}  Bxf2+ {[%clk 0:02:11]} 12. Kf1 {[%clk 0:02:29]}  Qc5 {[%clk 0:02:10]} 13. b4 {[%clk 0:02:27]}  Qh5 {[%clk 0:01:42]} 14. Kxf2 {[%clk 0:02:27]}  Ng4+ {[%clk 0:01:42]} 15. Kf1 {[%clk 0:02:25]}  Qxh2 {[%clk 0:01:42]} 16. Bf4 {[%clk 0:01:56]}  O-O {[%clk 0:01:23]} 17. Qc3 {[%clk 0:01:39]}  b6 {[%clk 0:01:14]} 18. Ne5 {[%clk 0:01:27]}  Bb7 {[%clk 0:01:05]} 19. Nf3 {[%clk 0:01:14]}  Qh5 {[%clk 0:01:00]} 20. Qxc7 {[%clk 0:01:03]}  e5 {[%clk 0:00:57]} 21. Bd2 {[%clk 0:00:49]}  e4 {[%clk 0:00:54]} 22. Nh4 {[%clk 0:00:46]}  Rfc8 {[%clk 0:00:32]} 23. Qf4 {[%clk 0:00:44]}  Re8 {[%clk 0:00:31]} 24. Qg5 {[%clk 0:00:36]}  Qxg5 {[%clk 0:00:27]} 25. Bxg5 {[%clk 0:00:36]}  f6 {[%clk 0:00:27]} 26. Bf4 {[%clk 0:00:36]}  Rbd8 {[%clk 0:00:26]} 27. Nf5 {[%clk 0:00:35]}  g5 {[%clk 0:00:24]} 28. Bc7 {[%clk 0:00:31]}  Rc8 {[%clk 0:00:24]} 29. Rd7 {[%clk 0:00:23]}  Bc6 {[%clk 0:00:20]} 30. Rg7+ {[%clk 0:00:16]}  Kh8 {[%clk 0:00:20]} 31. Rf7 {[%clk 0:00:09]}  Bd5 {[%clk 0:00:18]} 32. Nd6 {[%clk 0:00:04]}  Bxf7 {[%clk 0:00:17]} 33. Nxf7+ {[%clk 0:00:05]}  Kg7 {[%clk 0:00:17]} 34. Nd6 {[%clk 0:00:06]}  Re7 {[%clk 0:00:16]} 35. Nxc8 {[%clk 0:00:06]}  Rxc7 {[%clk 0:00:16]} 36. Nd6 {[%clk 0:00:07]}  e3 {[%clk 0:00:16]} 37. Bf3 {[%clk 0:00:05]}  Ne5 {[%clk 0:00:15]} 38. Nf5+ {[%clk 0:00:06]}  Kg6 {[%clk 0:00:15]} 39. Nxe3 {[%clk 0:00:07]}  f5 {[%clk 0:00:16]} 40. Rd1 {[%clk 0:00:05]}  Rc3 {[%clk 0:00:15]} 41. Rd6+ {[%clk 0:00:06]}  Kf7 {[%clk 0:00:16]} 42. Nd5 {[%clk 0:00:05]}  Ra3 {[%clk 0:00:15]} 43. Rf6+ {[%clk 0:00:05]}  Kg7 {[%clk 0:00:15]} 44. Rxf5 {[%clk 0:00:06]}  Nxf3 {[%clk 0:00:16]} 45. Rxf3 {[%clk 0:00:06]}  Rxa2 {[%clk 0:00:16]} 46. e4 {[%clk 0:00:06]}  a5 {[%clk 0:00:15]} 47. bxa5 {[%clk 0:00:04]}  bxa5 {[%clk 0:00:16]} 48. e5 {[%clk 0:00:05]}  Rd2 {[%clk 0:00:16]} 49. Nc3 {[%clk 0:00:03]}  Rd8 {[%clk 0:00:13]} 50. e6 {[%clk 0:00:03]}  Re8 {[%clk 0:00:14]} 51. Re3 {[%clk 0:00:03]}  Kf6 {[%clk 0:00:13]} 52. Nd5+ {[%clk 0:00:03]}  Kf5 {[%clk 0:00:12]} 53. e7 {[%clk 0:00:04]}  a4 {[%clk 0:00:07]} 54. Nc7 {[%clk 0:00:04]} 1-0


[Site "https://www.chess.com"]

[Event "Titled Tuesday Blitz August 1 Early 2023"]
[White "To, Nhat Minh"]
[Black "Lamaze, Simon"]
[WhiteFideId "729019"]
[BlackFideId "36069264"]
[WhiteElo "2557"]
[BlackElo "2770"]
[Result "0-1"]
[Round "4"]
[TimeControl "180+1"]
[Date "2023.08.01"]
[WhiteClock "0:01:38"]
[BlackClock "0:01:43"]
[Board "59"]

1. e4 {[%clk 0:02:57]}  c6 {[%clk 0:03:00]} 2. d4 {[%clk 0:02:53]}  d5 {[%clk 0:03:00]} 3. f3 {[%clk 0:02:54]}  e6 {[%clk 0:02:50]} 4. Nc3 {[%clk 0:02:54]}  Bb4 {[%clk 0:02:50]} 5. Be3 {[%clk 0:02:46]}  Ne7 {[%clk 0:02:47]} 6. Ne2 {[%clk 0:02:42]}  Nd7 {[%clk 0:02:45]} 7. a3 {[%clk 0:02:42]}  Ba5 {[%clk 0:02:45]} 8. Qd3 {[%clk 0:02:38]}  O-O {[%clk 0:02:42]} 9. b4 {[%clk 0:02:28]}  Bc7 {[%clk 0:02:40]} 10. g3 {[%clk 0:02:24]}  a5 {[%clk 0:02:36]} 11. Rb1 {[%clk 0:02:20]}  axb4 {[%clk 0:02:35]} 12. axb4 {[%clk 0:02:21]}  e5 {[%clk 0:02:36]} 13. exd5 {[%clk 0:02:15]}  cxd5 {[%clk 0:02:34]} 14. Bg2 {[%clk 0:02:09]}  exd4 {[%clk 0:02:30]} 15. Bxd4 {[%clk 0:02:04]}  Ne5 {[%clk 0:02:28]} 16. Bxe5 {[%clk 0:01:54]}  Bxe5 {[%clk 0:02:29]} 17. O-O {[%clk 0:01:54]}  Bf5 {[%clk 0:02:21]} 18. Qd2 {[%clk 0:01:51]}  Rc8 {[%clk 0:02:09]} 19. f4 {[%clk 0:01:45]}  Bf6 {[%clk 0:02:00]} 20. Nd4 {[%clk 0:01:44]}  Rxc3 {[%clk 0:01:44]} 21. Qxc3 {[%clk 0:01:43]}  Qb6 {[%clk 0:01:43]} 22. Rfd1 {[%clk 0:01:38]}  Nc6 {[%clk 0:01:43]} 0-1


[Site "https://www.chess.com"]

[Event "Titled Tuesday Blitz August 1 Early 2023"]
[White "Postlmayer, Jakob"]
[Black "Gorovets, Andrey"]
[WhiteFideId "1643622"]
[BlackFideId "13504037"]
[WhiteElo "2556"]
[BlackElo "2761"]
[Result "0-1"]
[Round "4"]
[TimeControl "180+1"]
[Date "2023.08.01"]
[WhiteClock "0:01:55"]
[BlackClock "0:01:34"]
[Board "60"]

1. d4 {[%clk 0:03:00]}  Nf6 {[%clk 0:02:59]} 2. c4 {[%clk 0:03:01]}  e6 {[%clk 0:02:59]} 3. Nf3 {[%clk 0:03:01]}  b6 {[%clk 0:02:58]} 4. a3 {[%clk 0:03:00]}  d5 {[%clk 0:02:53]} 5. cxd5 {[%clk 0:02:58]}  exd5 {[%clk 0:02:54]} 6. Nc3 {[%clk 0:02:58]}  Bb7 {[%clk 0:02:53]} 7. Bg5 {[%clk 0:02:58]}  Nbd7 {[%clk 0:02:52]} 8. e3 {[%clk 0:02:57]}  Be7 {[%clk 0:02:51]} 9. Bd3 {[%clk 0:02:57]}  O-O {[%clk 0:02:51]} 10. O-O {[%clk 0:02:57]}  Ne4 {[%clk 0:02:49]} 11. Bxe7 {[%clk 0:02:56]}  Qxe7 {[%clk 0:02:50]} 12. Rc1 {[%clk 0:02:54]}  a6 {[%clk 0:02:45]} 13. Qc2 {[%clk 0:02:49]}  Rac8 {[%clk 0:02:39]} 14. Nd2 {[%clk 0:02:08]}  f5 {[%clk 0:02:37]} 15. Rce1 {[%clk 0:02:07]}  c5 {[%clk 0:02:30]} 16. dxc5 {[%clk 0:02:06]}  Ndxc5 {[%clk 0:02:10]} 17. f3 {[%clk 0:02:06]}  Nxc3 {[%clk 0:02:08]} 18. Qxc3 {[%clk 0:02:05]}  Ne4 {[%clk 0:01:50]} 19. Qxc8 {[%clk 0:01:57]}  Bxc8 {[%clk 0:01:42]} 20. fxe4 {[%clk 0:01:57]}  fxe4 {[%clk 0:01:35]} 21. Bxa6 {[%clk 0:01:55]}  Bxa6 {[%clk 0:01:34]} 0-1


[Site "https://www.chess.com"]

[Event "Titled Tuesday Blitz August 1 Early 2023"]
[White "Starozhilov, Leonid"]
[Black "Porter, Ryan W"]
[WhiteFideId "14106752"]
[BlackFideId "2011239"]
[WhiteElo "2747"]
[BlackElo "2555"]
[Result "1-0"]
[Round "4"]
[TimeControl "180+1"]
[Date "2023.08.01"]
[WhiteClock "0:00:03"]
[BlackClock "0:00:00"]
[Board "62"]

1. e4 {[%clk 0:03:00]}  d5 {[%clk 0:03:00]} 2. Nc3 {[%clk 0:02:59]}  d4 {[%clk 0:02:59]} 3. Nce2 {[%clk 0:02:59]}  e5 {[%clk 0:03:00]} 4. Nf3 {[%clk 0:02:59]}  f6 {[%clk 0:02:57]} 5. Ng3 {[%clk 0:02:59]}  Be6 {[%clk 0:02:56]} 6. Bb5+ {[%clk 0:02:59]}  c6 {[%clk 0:02:56]} 7. Ba4 {[%clk 0:03:00]}  Nd7 {[%clk 0:02:56]} 8. Bb3 {[%clk 0:02:59]}  Nc5 {[%clk 0:02:57]} 9. Bxe6 {[%clk 0:02:56]}  Nxe6 {[%clk 0:02:58]} 10. d3 {[%clk 0:02:57]}  Qd7 {[%clk 0:02:58]} 11. Bd2 {[%clk 0:02:53]}  O-O-O {[%clk 0:02:55]} 12. a4 {[%clk 0:02:52]}  g6 {[%clk 0:02:53]} 13. b4 {[%clk 0:02:52]}  h5 {[%clk 0:02:50]} 14. Nh4 {[%clk 0:02:47]}  Ne7 {[%clk 0:02:44]} 15. b5 {[%clk 0:02:48]}  c5 {[%clk 0:02:42]} 16. O-O {[%clk 0:02:46]}  Bh6 {[%clk 0:02:37]} 17. Ba5 {[%clk 0:02:37]}  Rdg8 {[%clk 0:02:31]} 18. Qb1 {[%clk 0:02:35]}  Kb8 {[%clk 0:02:16]} 19. Qb3 {[%clk 0:02:33]}  Ng7 {[%clk 0:02:02]} 20. Qf7 {[%clk 0:02:18]}  Rf8 {[%clk 0:02:00]} 21. Qc4 {[%clk 0:02:18]}  Ne6 {[%clk 0:01:50]} 22. Rfb1 {[%clk 0:02:02]}  Bg5 {[%clk 0:01:47]} 23. Nf3 {[%clk 0:02:01]}  Bf4 {[%clk 0:01:46]} 24. Ne2 {[%clk 0:01:54]}  h4 {[%clk 0:01:44]} 25. Be1 {[%clk 0:01:30]}  h3 {[%clk 0:01:34]} 26. g3 {[%clk 0:01:26]}  Bh6 {[%clk 0:01:30]} 27. a5 {[%clk 0:01:18]}  Rc8 {[%clk 0:01:17]} 28. a6 {[%clk 0:01:18]}  b6 {[%clk 0:01:16]} 29. c3 {[%clk 0:01:18]}  Ng5 {[%clk 0:01:11]} 30. Nxg5 {[%clk 0:01:17]}  Bxg5 {[%clk 0:01:11]} 31. cxd4 {[%clk 0:00:51]}  Qg4 {[%clk 0:01:03]} 32. Kf1 {[%clk 0:00:31]}  cxd4 {[%clk 0:00:56]} 33. Qf7 {[%clk 0:00:31]}  Rc7 {[%clk 0:00:50]} 34. Ng1 {[%clk 0:00:25]}  f5 {[%clk 0:00:43]} 35. Bb4 {[%clk 0:00:20]}  Nc8 {[%clk 0:00:32]} 36. Qxg6 {[%clk 0:00:15]}  f4 {[%clk 0:00:25]} 37. f3 {[%clk 0:00:07]}  Qd7 {[%clk 0:00:22]} 38. Qxg5 {[%clk 0:00:05]}  Qxb5 {[%clk 0:00:22]} 39. Qg4 {[%clk 0:00:02]}  Qxd3+ {[%clk 0:00:21]} 40. Ne2 {[%clk 0:00:02]}  Rc2 {[%clk 0:00:17]} 41. Re1 {[%clk 0:00:03]}  fxg3 {[%clk 0:00:16]} 42. hxg3 {[%clk 0:00:02]}  h2 {[%clk 0:00:16]} 43. Kg2 {[%clk 0:00:02]}  Rxe2+ {[%clk 0:00:15]} 44. Rxe2 {[%clk 0:00:03]}  Qxe2+ {[%clk 0:00:14]} 45. Kh1 {[%clk 0:00:03]}  Qb2 {[%clk 0:00:13]} 46. Rf1 {[%clk 0:00:03]}  Qxb4 {[%clk 0:00:12]} 47. Qg7 {[%clk 0:00:04]}  Qe7 {[%clk 0:00:05]} 48. Qxh8 {[%clk 0:00:04]}  d3 {[%clk 0:00:05]} 49. Qxh2 {[%clk 0:00:04]}  Qd7 {[%clk 0:00:03]} 50. Kg1 {[%clk 0:00:03]}  Qd4+ {[%clk 0:00:00]} 51. Qf2 {[%clk 0:00:03]} 1-0


[Site "https://www.chess.com"]

[Event "Titled Tuesday Blitz August 1 Early 2023"]
[White "Onufrienko, Vladislav"]
[Black "Stribuk, Artiom"]
[WhiteFideId "13804332"]
[BlackFideId "13515659"]
[WhiteElo "2555"]
[BlackElo "2747"]
[Result "0-1"]
[Round "4"]
[TimeControl "180+1"]
[Date "2023.08.01"]
[WhiteClock "0:00:28"]
[BlackClock "0:00:58"]
[Board "63"]

1. e4 {[%clk 0:03:00]}  c5 {[%clk 0:02:59]} 2. Nc3 {[%clk 0:03:00]}  Nc6 {[%clk 0:02:58]} 3. Nf3 {[%clk 0:03:01]}  d6 {[%clk 0:02:57]} 4. d4 {[%clk 0:03:01]}  cxd4 {[%clk 0:02:57]} 5. Nxd4 {[%clk 0:03:02]}  Nf6 {[%clk 0:02:58]} 6. g3 {[%clk 0:03:01]}  g6 {[%clk 0:02:49]} 7. Bg2 {[%clk 0:03:01]}  Nxd4 {[%clk 0:02:49]} 8. Qxd4 {[%clk 0:03:00]}  Bg7 {[%clk 0:02:50]} 9. O-O {[%clk 0:03:01]}  O-O {[%clk 0:02:49]} 10. Qd3 {[%clk 0:02:50]}  Ng4 {[%clk 0:02:44]} 11. h3 {[%clk 0:02:29]}  Ne5 {[%clk 0:02:43]} 12. Qe2 {[%clk 0:02:30]}  Be6 {[%clk 0:02:43]} 13. b3 {[%clk 0:02:23]}  Rc8 {[%clk 0:02:33]} 14. Bd2 {[%clk 0:02:23]}  Qc7 {[%clk 0:01:53]} 15. f4 {[%clk 0:02:01]}  Nc4 {[%clk 0:01:13]} 16. bxc4 {[%clk 0:01:26]}  Bxc4 {[%clk 0:01:13]} 17. Nd5 {[%clk 0:01:27]}  Bxe2 {[%clk 0:01:08]} 18. Nxc7 {[%clk 0:01:27]}  Rxc7 {[%clk 0:01:09]} 19. Be3 {[%clk 0:00:55]}  Bxf1 {[%clk 0:01:03]} 20. Rxf1 {[%clk 0:00:54]}  Rxc2 {[%clk 0:01:03]} 21. Bxa7 {[%clk 0:00:52]}  Rxa2 {[%clk 0:01:03]} 22. Be3 {[%clk 0:00:52]}  Rc8 {[%clk 0:01:02]} 23. g4 {[%clk 0:00:43]}  Rc3 {[%clk 0:00:59]} 24. Bf2 {[%clk 0:00:34]}  Rcc2 {[%clk 0:00:59]} 25. Bf3 {[%clk 0:00:28]}  Rxf2 {[%clk 0:00:58]} 26. Rxf2 {[%clk 0:00:28]}  Bd4 {[%clk 0:00:58]} 0-1


[Site "https://www.chess.com"]

[Event "Titled Tuesday Blitz August 1 Early 2023"]
[White "Xu, Yi"]
[Black "Gauri, Shankar"]
[WhiteFideId "8605564"]
[BlackFideId "5041350"]
[WhiteElo "2741"]
[BlackElo "2550"]
[Result "1-0"]
[Round "4"]
[TimeControl "180+1"]
[Date "2023.08.01"]
[WhiteClock "0:00:31"]
[BlackClock "0:00:06"]
[Board "65"]

1. d4 {[%clk 0:03:00]}  Nf6 {[%clk 0:02:59]} 2. c4 {[%clk 0:03:01]}  e6 {[%clk 0:02:59]} 3. Nf3 {[%clk 0:03:01]}  Bb4+ {[%clk 0:02:55]} 4. Bd2 {[%clk 0:02:57]}  Qe7 {[%clk 0:02:53]} 5. g3 {[%clk 0:02:53]}  Nc6 {[%clk 0:02:51]} 6. Nc3 {[%clk 0:02:53]}  Bxc3 {[%clk 0:02:48]} 7. Bxc3 {[%clk 0:02:53]}  Ne4 {[%clk 0:02:49]} 8. Rc1 {[%clk 0:02:51]}  d6 {[%clk 0:02:47]} 9. Bg2 {[%clk 0:02:51]}  O-O {[%clk 0:02:44]} 10. d5 {[%clk 0:02:50]}  Nxc3 {[%clk 0:02:41]} 11. Rxc3 {[%clk 0:02:50]}  Nb8 {[%clk 0:02:39]} 12. dxe6 {[%clk 0:02:45]}  fxe6 {[%clk 0:02:37]} 13. c5 {[%clk 0:02:45]}  Nc6 {[%clk 0:02:33]} 14. O-O {[%clk 0:02:32]}  d5 {[%clk 0:02:13]} 15. Nd4 {[%clk 0:02:22]}  Nxd4 {[%clk 0:02:09]} 16. Qxd4 {[%clk 0:02:22]}  c6 {[%clk 0:02:08]} 17. Re3 {[%clk 0:02:03]}  Bd7 {[%clk 0:01:58]} 18. f4 {[%clk 0:01:59]}  b6 {[%clk 0:01:44]} 19. b4 {[%clk 0:01:56]}  a5 {[%clk 0:01:40]} 20. f5 {[%clk 0:01:39]}  axb4 {[%clk 0:01:06]} 21. cxb6 {[%clk 0:01:39]}  Qf6 {[%clk 0:00:53]} 22. Qxb4 {[%clk 0:01:04]}  exf5 {[%clk 0:00:41]} 23. a4 {[%clk 0:00:55]}  Rfe8 {[%clk 0:00:15]} 24. b7 {[%clk 0:00:51]}  Rab8 {[%clk 0:00:14]} 25. Rxe8+ {[%clk 0:00:51]}  Bxe8 {[%clk 0:00:15]} 26. a5 {[%clk 0:00:50]}  Qe6 {[%clk 0:00:13]} 27. a6 {[%clk 0:00:49]}  Qe3+ {[%clk 0:00:13]} 28. Kh1 {[%clk 0:00:48]}  Qa7 {[%clk 0:00:13]} 29. Rxf5 {[%clk 0:00:43]}  Bf7 {[%clk 0:00:12]} 30. Qe7 {[%clk 0:00:41]}  Rf8 {[%clk 0:00:12]} 31. Qc7 {[%clk 0:00:35]}  g6 {[%clk 0:00:11]} 32. Rxf7 {[%clk 0:00:32]}  Rxf7 {[%clk 0:00:06]} 33. b8=Q+ {[%clk 0:00:31]} 1-0


[Site "https://www.chess.com"]

[Event "Titled Tuesday Blitz August 1 Early 2023"]
[White "Idani, Pouya"]
[Black "Ganiev, Roman"]
[WhiteFideId "12510130"]
[BlackFideId "4131452"]
[WhiteElo "2734"]
[BlackElo "2548"]
[Result "1-0"]
[Round "4"]
[TimeControl "180+1"]
[Date "2023.08.01"]
[WhiteClock "0:00:42"]
[BlackClock "0:00:00"]
[Board "67"]

1. e4 {[%clk 0:03:00]}  c5 {[%clk 0:02:52]} 2. Nf3 {[%clk 0:03:00]}  d6 {[%clk 0:02:52]} 3. Bb5+ {[%clk 0:02:57]}  Bd7 {[%clk 0:02:50]} 4. Bxd7+ {[%clk 0:02:57]}  Qxd7 {[%clk 0:02:51]} 5. d4 {[%clk 0:02:56]}  cxd4 {[%clk 0:02:51]} 6. Qxd4 {[%clk 0:02:57]}  Nf6 {[%clk 0:02:50]} 7. O-O {[%clk 0:02:56]}  Nc6 {[%clk 0:02:50]} 8. Qd3 {[%clk 0:02:57]}  e6 {[%clk 0:02:46]} 9. c4 {[%clk 0:02:56]}  Be7 {[%clk 0:02:45]} 10. Nc3 {[%clk 0:02:57]}  O-O {[%clk 0:02:45]} 11. Bf4 {[%clk 0:02:57]}  Rfd8 {[%clk 0:02:34]} 12. Rfd1 {[%clk 0:02:56]}  a6 {[%clk 0:02:18]} 13. Rac1 {[%clk 0:02:50]}  Qc7 {[%clk 0:02:18]} 14. Nd5 {[%clk 0:02:43]}  exd5 {[%clk 0:01:31]} 15. cxd5 {[%clk 0:02:44]}  Qb6 {[%clk 0:01:31]} 16. dxc6 {[%clk 0:02:43]}  bxc6 {[%clk 0:01:32]} 17. Nd4 {[%clk 0:02:43]}  Rac8 {[%clk 0:00:51]} 18. Nf5 {[%clk 0:02:32]}  Qa7 {[%clk 0:00:51]} 19. Bxd6 {[%clk 0:01:47]}  Bxd6 {[%clk 0:00:38]} 20. Nxd6 {[%clk 0:01:47]}  Rb8 {[%clk 0:00:23]} 21. b3 {[%clk 0:01:25]}  Qe7 {[%clk 0:00:17]} 22. Nf5 {[%clk 0:01:02]}  Qf8 {[%clk 0:00:16]} 23. Qc4 {[%clk 0:01:00]}  c5 {[%clk 0:00:11]} 24. e5 {[%clk 0:00:55]}  Nd7 {[%clk 0:00:04]} 25. e6 {[%clk 0:00:53]}  Ne5 {[%clk 0:00:02]} 26. e7 {[%clk 0:00:47]}  Rxd1+ {[%clk 0:00:02]} 27. Rxd1 {[%clk 0:00:47]}  Qe8 {[%clk 0:00:01]} 28. Qxc5 {[%clk 0:00:46]}  Ng6 {[%clk 0:00:00]} 29. Qc7 {[%clk 0:00:42]} 1-0


[Site "https://www.chess.com"]

[Event "Titled Tuesday Blitz August 1 Early 2023"]
[White "Womacka, Mathias"]
[Black "Preotu, Razvan"]
[WhiteFideId "4611390"]
[BlackFideId "2613280"]
[WhiteElo "2546"]
[BlackElo "2732"]
[Result "0-1"]
[Round "4"]
[TimeControl "180+1"]
[Date "2023.08.01"]
[WhiteClock "0:00:00"]
[BlackClock "0:00:15"]
[Board "68"]

1. e4 {[%clk 0:03:00]}  c5 {[%clk 0:02:59]} 2. Nf3 {[%clk 0:03:00]}  d6 {[%clk 0:02:59]} 3. d4 {[%clk 0:02:59]}  cxd4 {[%clk 0:03:00]} 4. Nxd4 {[%clk 0:02:59]}  Nf6 {[%clk 0:03:00]} 5. Nc3 {[%clk 0:02:59]}  a6 {[%clk 0:03:01]} 6. Be2 {[%clk 0:03:00]}  e5 {[%clk 0:03:01]} 7. Nb3 {[%clk 0:02:59]}  Be7 {[%clk 0:03:02]} 8. O-O {[%clk 0:02:59]}  O-O {[%clk 0:03:02]} 9. Kh1 {[%clk 0:02:59]}  Re8 {[%clk 0:02:46]} 10. f4 {[%clk 0:02:50]}  b5 {[%clk 0:02:45]} 11. a4 {[%clk 0:02:39]}  b4 {[%clk 0:02:42]} 12. Nd5 {[%clk 0:02:39]}  Nbd7 {[%clk 0:02:33]} 13. fxe5 {[%clk 0:02:06]}  dxe5 {[%clk 0:02:31]} 14. Bc4 {[%clk 0:01:42]}  Bb7 {[%clk 0:02:28]} 15. Bg5 {[%clk 0:01:23]}  Rc8 {[%clk 0:01:31]} 16. Bxf6 {[%clk 0:01:08]}  Nxf6 {[%clk 0:01:30]} 17. Nxf6+ {[%clk 0:00:45]}  Bxf6 {[%clk 0:01:30]} 18. Qe2 {[%clk 0:00:37]}  Qc7 {[%clk 0:01:23]} 19. Nd2 {[%clk 0:00:27]}  Qe7 {[%clk 0:00:32]} 20. b3 {[%clk 0:00:25]}  Rf8 {[%clk 0:00:33]} 21. Rf2 {[%clk 0:00:19]}  Bg5 {[%clk 0:00:34]} 22. Nf3 {[%clk 0:00:19]}  Bh6 {[%clk 0:00:33]} 23. Nh4 {[%clk 0:00:18]}  Qxh4 {[%clk 0:00:32]} 24. Raf1 {[%clk 0:00:00]}  Bf4 {[%clk 0:00:15]} 0-1


[Site "https://www.chess.com"]

[Event "Titled Tuesday Blitz August 1 Early 2023"]
[White "Al-Tarboush, Ward"]
[Black "Javakhadze, Zurab"]
[WhiteFideId "7601450"]
[BlackFideId "13603647"]
[WhiteElo "2544"]
[BlackElo "2730"]
[Result "0-1"]
[Round "4"]
[TimeControl "180+1"]
[Date "2023.08.01"]
[WhiteClock "0:00:00"]
[BlackClock "0:00:05"]
[Board "69"]

1. e4 {[%clk 0:03:00]}  c5 {[%clk 0:02:59]} 2. Nf3 {[%clk 0:03:01]}  d6 {[%clk 0:03:00]} 3. d4 {[%clk 0:03:02]}  cxd4 {[%clk 0:03:01]} 4. Nxd4 {[%clk 0:03:02]}  Nf6 {[%clk 0:03:01]} 5. Nc3 {[%clk 0:03:03]}  g6 {[%clk 0:03:01]} 6. Be2 {[%clk 0:03:03]}  Bg7 {[%clk 0:03:00]} 7. O-O {[%clk 0:03:03]}  Nc6 {[%clk 0:03:01]} 8. Be3 {[%clk 0:03:04]}  O-O {[%clk 0:03:01]} 9. h3 {[%clk 0:03:04]}  d5 {[%clk 0:03:02]} 10. exd5 {[%clk 0:03:04]}  Nb4 {[%clk 0:03:02]} 11. d6 {[%clk 0:03:03]}  Qxd6 {[%clk 0:03:02]} 12. Ncb5 {[%clk 0:03:03]}  Qb8 {[%clk 0:02:53]} 13. c4 {[%clk 0:03:03]}  a6 {[%clk 0:02:51]} 14. Nc3 {[%clk 0:03:02]}  Qc7 {[%clk 0:02:46]} 15. Rc1 {[%clk 0:02:50]}  Rd8 {[%clk 0:02:43]} 16. a3 {[%clk 0:02:16]}  Nc6 {[%clk 0:02:43]} 17. Nd5 {[%clk 0:02:13]}  Nxd5 {[%clk 0:02:43]} 18. cxd5 {[%clk 0:02:13]}  Rxd5 {[%clk 0:02:43]} 19. Bf3 {[%clk 0:02:13]}  Rd6 {[%clk 0:02:35]} 20. Qa4 {[%clk 0:02:09]}  Rb8 {[%clk 0:02:01]} 21. Nxc6 {[%clk 0:01:51]}  bxc6 {[%clk 0:02:00]} 22. Bc5 {[%clk 0:01:51]}  Rd8 {[%clk 0:01:40]} 23. b4 {[%clk 0:01:51]}  Bb7 {[%clk 0:01:22]} 24. Qb3 {[%clk 0:01:38]}  Rd7 {[%clk 0:01:15]} 25. Qe3 {[%clk 0:01:33]}  Qe5 {[%clk 0:01:12]} 26. Qb3 {[%clk 0:01:25]}  Qf4 {[%clk 0:01:05]} 27. Ba7 {[%clk 0:01:22]}  Rbd8 {[%clk 0:01:05]} 28. Bb6 {[%clk 0:01:22]}  Rd3 {[%clk 0:01:02]} 29. Qc2 {[%clk 0:01:12]}  Be5 {[%clk 0:00:57]} 30. Rfe1 {[%clk 0:01:01]}  Qh2+ {[%clk 0:00:52]} 31. Kf1 {[%clk 0:01:01]}  Rd2 {[%clk 0:00:52]} 32. g3 {[%clk 0:00:45]}  Bxg3 {[%clk 0:00:35]} 33. Re2 {[%clk 0:00:23]}  Rxc2 {[%clk 0:00:24]} 34. Rexc2 {[%clk 0:00:24]}  Bc7 {[%clk 0:00:21]} 35. Be3 {[%clk 0:00:18]}  Qxh3+ {[%clk 0:00:20]} 36. Ke2 {[%clk 0:00:16]}  Qe6 {[%clk 0:00:15]} 37. Bxc6 {[%clk 0:00:14]}  Bxc6 {[%clk 0:00:14]} 38. Rxc6 {[%clk 0:00:15]}  Qg4+ {[%clk 0:00:15]} 39. Ke1 {[%clk 0:00:14]}  Be5 {[%clk 0:00:13]} 40. R6c4 {[%clk 0:00:14]}  Qf3 {[%clk 0:00:11]} 41. a4 {[%clk 0:00:14]}  h5 {[%clk 0:00:10]} 42. b5 {[%clk 0:00:14]}  axb5 {[%clk 0:00:08]} 43. axb5 {[%clk 0:00:15]}  Qd5 {[%clk 0:00:08]} 44. b6 {[%clk 0:00:14]}  Qa5+ {[%clk 0:00:08]} 45. Kf1 {[%clk 0:00:14]}  Rb8 {[%clk 0:00:06]} 46. Rc5 {[%clk 0:00:10]}  Qa6+ {[%clk 0:00:05]} 47. Kg2 {[%clk 0:00:10]}  Bd6 {[%clk 0:00:06]} 48. Rc6 {[%clk 0:00:08]}  f6 {[%clk 0:00:06]} 49. Kg1 {[%clk 0:00:07]}  Kf7 {[%clk 0:00:06]} 50. R6c4 {[%clk 0:00:03]}  Rxb6 {[%clk 0:00:06]} 51. Bxb6 {[%clk 0:00:04]}  Qxb6 {[%clk 0:00:07]} 52. Rc6 {[%clk 0:00:05]}  Qb5 {[%clk 0:00:07]} 53. R6c4 {[%clk 0:00:05]}  h4 {[%clk 0:00:06]} 54. Kg2 {[%clk 0:00:05]}  Qg5+ {[%clk 0:00:06]} 55. Kh3 {[%clk 0:00:05]}  Qf5+ {[%clk 0:00:07]} 56. Kg2 {[%clk 0:00:04]}  g5 {[%clk 0:00:07]} 57. f3 {[%clk 0:00:04]}  h3+ {[%clk 0:00:07]} 58. Kf2 {[%clk 0:00:05]}  h2 {[%clk 0:00:07]} 59. Rg4 {[%clk 0:00:04]}  Qd5 {[%clk 0:00:06]} 60. Rh1 {[%clk 0:00:03]}  Qd2+ {[%clk 0:00:06]} 61. Kf1 {[%clk 0:00:03]}  Bc5 {[%clk 0:00:06]} 62. Rxh2 {[%clk 0:00:00]}  Qxh2 {[%clk 0:00:05]} 0-1


[Site "https://www.chess.com"]

[Event "Titled Tuesday Blitz August 1 Early 2023"]
[White "Jaracz, Pawel"]
[Black "Fonseca Manrique, Enrique"]
[WhiteFideId "1102222"]
[BlackFideId "5114330"]
[WhiteElo "2728"]
[BlackElo "2541"]
[Result "0-1"]
[Round "4"]
[TimeControl "180+1"]
[Date "2023.08.01"]
[WhiteClock "0:00:00"]
[BlackClock "0:01:12"]
[Board "70"]

1. g3 {[%clk 0:03:00]}  g6 {[%clk 0:02:50]} 2. Bg2 {[%clk 0:02:59]}  Bg7 {[%clk 0:02:50]} 3. d4 {[%clk 0:02:59]}  c5 {[%clk 0:02:48]} 4. d5 {[%clk 0:02:58]}  Nf6 {[%clk 0:02:48]} 5. e4 {[%clk 0:02:56]}  d6 {[%clk 0:02:46]} 6. Nc3 {[%clk 0:02:53]}  O-O {[%clk 0:02:45]} 7. a4 {[%clk 0:02:51]}  Na6 {[%clk 0:02:43]} 8. h3 {[%clk 0:02:47]}  Nc7 {[%clk 0:02:37]} 9. Nf3 {[%clk 0:02:42]}  Nd7 {[%clk 0:02:28]} 10. O-O {[%clk 0:02:40]}  a6 {[%clk 0:02:28]} 11. Bf4 {[%clk 0:02:34]}  Bxc3 {[%clk 0:02:10]} 12. bxc3 {[%clk 0:02:31]}  f6 {[%clk 0:02:10]} 13. g4 {[%clk 0:02:25]}  Rb8 {[%clk 0:02:00]} 14. g5 {[%clk 0:02:21]}  Ne5 {[%clk 0:01:53]} 15. Nxe5 {[%clk 0:02:09]}  fxe5 {[%clk 0:01:51]} 16. Be3 {[%clk 0:00:00]}  Ne8 {[%clk 0:01:12]} 0-1


[Site "https://www.chess.com"]